fUSD/lending_fUSD_20250914
["ID","MTS","AMOUNT","RATE_DAILY","PERIOD"]
[385384477,1757808094634,500.0,0.00030137,120]
[385384478,1757808148892,267.0,0.00030137,120]
[385384480,1757808545043,150.0,0.0002,2]
[385384481,1757808547125,-150.0,0.0002118,2]
[385384482,1757808547145,-366.81069184,0.0002208,2]
[385384483,1757808547165,-219.0,0.0002237,2]
[385384484,1757808547186,-250.0,0.000231,2]
[385384485,1757808547207,-575.64299255,0.000231,3]
[385384486,1757808547226,-366.81069184,0.00023444,2]
[385384487,1757808547247,-215.0,0.0002355,2]
[385384488,1757808547271,-210.0,0.0002473,2]
[385384489,1757808547291,-366.81069184,0.00024808,2]
[385384490,1757808547314,-2113.24203845,0.000249,2]
[385384493,1757808631938,-451.21721006,0.000249,2]
[385384494,1757808632076,-250.11754158,0.000249,2]
[385384495,1757808632086,-206.0,0.0002592,2]
[385384496,1757808632095,-201.0,0.000271,2]
[385384497,1757808632104,-195.85,0.00027397,2]
[385384498,1757808632113,-197.0,0.0002829,2]
[385384499,1757808632123,-185.69,0.00028967,2]
[385384500,1757808632131,-192.0,0.0002947,2]
[385384501,1757808632140,-203.791307,0.0003,10]
[385384502,1757808632149,-160.0,0.00030249,2]
[385384503,1757808632159,-212.99211257,0.00030249,2]
[385384504,1757808632168,-4168.0,0.00030362,2]
[385384505,1757808632177,-897.0,0.00030362,2]
[385384506,1757808632186,-1200.0,0.00030649,2]
[385384507,1757808632195,-187.0,0.0003065,2]
[385384508,1757808632204,-183.0,0.0003184,2]
[385384509,1757808632214,-640.37,0.00032,2]
[385384510,1757808632223,-1507.99341289,0.000329,2]
[385384511,1757808632232,-500.0,0.00033,12]
[385384512,1757808632242,-500.0,0.00033,12]
[385384513,1757808632251,-500.0,0.00033,12]
[385384514,1757808632260,-500.0,0.00033,12]
[385384515,1757808632269,-500.0,0.00033,12]
[385384516,1757808632278,-500.0,0.00033,12]
[385384517,1757808632287,-500.0,0.00033,12]
[385384518,1757808632296,-500.0,0.00033,12]
[385384519,1757808632305,-178.0,0.0003302,2]
[385384520,1757808632314,-160.0,0.00033051,2]
[385384521,1757808632324,-515.60081738,0.00033051,2]
[385384522,1757808632333,-195.85,0.00033165,2]
[385384523,1757808632343,-4168.0,0.00033362,2]
[385384524,1757808632352,-897.0,0.00033362,2]
[385384525,1757808632361,-195.52947657,0.00033485,7]
[385384526,1757808632371,-163.97,0.00033777,2]
[385384527,1757808632380,-250.0,0.00033795,2]
[385384528,1757808632389,-1419.08969336,0.00034107,2]
[385384529,1757808632401,-366.62030664,0.00034107,2]
[385384531,1757808632410,-174.0,0.000342,2]
[385384533,1757808632419,-500.0,0.00034375,7]
[385384535,1757808632428,-500.0,0.00034375,7]
[385384537,1757808632437,-752.68308315,0.00035037,2]
[385384539,1757808632447,-152.0,0.00035171,3]
[385384541,1757808632456,-500.0,0.00035197,7]
[385384543,1757808632465,-761.23,0.0003521,2]
[385384544,1757808632474,-456.54438607,0.00035215,2]
[385384545,1757808632483,-151.0,0.00035222,14]
[385384546,1757808632493,-151.0,0.00035222,14]
[385384547,1757808632502,-1750.2535757,0.00035225,2]
[385384548,1757808632511,-47307.6436401,0.00035225,2]
[385384549,1757808632520,-752.68308315,0.00035277,2]
[385384550,1757808632530,-198.98,0.00035329,2]
[385384551,1757808632539,-169.0,0.0003539,2]
[385384552,1757808632548,-831.2,0.0003539,120]
[385384553,1757808632557,-752.68308315,0.0003549,2]
[385384554,1757808632566,-150.0,0.00035549,7]
[385384555,1757808632575,-210.30174162,0.00035616,2]
[385384556,1757808632584,-500.0,0.00035632,2]
[385384557,1757808632593,-160.71983813,0.00035632,2]
[385384558,1757808632602,-282.537,0.00035663,42]
[385384559,1757808632611,-322.6107,0.00035666,15]
[385384560,1757808632625,-151.0,0.00035666,15]
[385384561,1757808632634,-151.0,0.00035666,15]
[385384562,1757808632643,-151.0,0.00035666,15]
[385384563,1757808632651,-151.0,0.00035666,15]
[385384564,1757808632662,-721.12765535,0.00035666,15]
[385384565,1757808632671,-6271.63871225,0.00035666,15]
[385384566,1757808632680,-401.65263792,0.00035666,15]
[385384567,1757808632689,-1000.0,0.00035666,15]
[385384568,1757808632699,-1000.0,0.00035666,15]
[385384569,1757808632709,-155.67037143,0.00035666,15]
[385384570,1757808632718,-1000.0,0.00035666,15]
[385384571,1757808632728,-1000.0,0.00035666,15]
[385384572,1757808632736,-1000.0,0.00035666,15]
[385384573,1757808632748,-208.18932465,0.00035666,15]
[385384574,1757808632760,-291.81067535,0.00035666,15]
[385384575,1757808632769,-176.57932465,0.00035666,15]
[385384576,1757808632780,-100.77746587,0.00035666,15]
[385384577,1757808632790,-287.61899177,0.00035666,15]
[385384578,1757808632800,-298.26089446,0.00035666,15]
[385384579,1757808632809,-116.03874203,0.00035666,15]
[385384580,1757808638058,-193.25780553,0.00035666,15]
[385384581,1757808638068,-320.74051982,0.00035666,15]
[385384582,1757808638077,-332.60791905,0.00035666,15]
[385384583,1757808638086,-344.91441206,0.00035666,15]
[385384585,1757808638095,-357.6762453,0.00035666,15]
[385384587,1757808638104,-250.0,0.00035666,15]
[385384589,1757808638113,-5.92103371,0.00035666,15]
[385384591,1757808638124,-364.98923267,0.00035666,15]
[385384593,1757808638134,-250.0,0.00035666,15]
[385384595,1757808638144,-384.63394623,0.00035666,15]
[385384596,1757808638153,-159.5768211,0.00035666,15]
[385384598,1757808638164,-90.4231789,0.00035666,15]
[385384600,1757808638173,-398.86540225,0.00035666,15]
[385384601,1757808638183,-26.03780655,0.00035666,15]
[385384602,1757808638194,-223.96219345,0.00035666,15]
[385384603,1757808638203,-250.0,0.00035666,15]
[385384604,1757808638212,-250.0,0.00035666,15]
[385384605,1757808638222,-250.0,0.00035666,15]
[385384606,1757808638231,-206.85803263,0.00035666,15]
[385384607,1757808638243,-144.15327053,0.00035666,15]
[385384608,1757808638252,-155.0,0.00035668,7]
[385384609,1757808638261,-155.0,0.00035668,7]
[385384610,1757808638271,-202.21230811,0.00035668,7]
[385384612,1757808638280,-9.07852072,0.00035668,7]
[385384613,1757808638291,-142.92147928,0.00035668,7]
[385384614,1757808638300,-547.0,0.00035668,7]
[385384616,1757808638309,-100.81914219,0.00035668,7]
[385384625,1757808639805,-183.40534592,0.000248,2]
[385384627,1757808639815,-304.43587256,0.000249,2]
[385384631,1757808639852,-3399.63558006,0.000249,2]
[385384632,1757808639862,-446.18085781,0.00035668,7]
[385384634,1757808639871,-152.0,0.00035668,7]
[385384636,1757808639881,-547.0,0.00035668,7]
[385384638,1757808639890,-547.0,0.00035668,7]
[385384639,1757808639899,-154.0,0.00035668,7]
[385384641,1757808639915,-157.46102034,0.00035668,7]
[385384642,1757808639925,-151.0,0.00035668,2]
[385384643,1757808639936,-155.0,0.00035668,7]
[385384644,1757808639946,-205.58494233,0.00035668,7]
[385384646,1757808639957,-500.0,0.00035668,120]
[385384648,1757808639969,-1683.09868016,0.00035668,2]
[385384651,1757808639985,-650.23464984,0.00035668,2]
[385384653,1757808639996,-212.74558065,0.00035668,2]
[385384655,1757808640007,-150.0,0.00035785,120]
[385384657,1757808640018,-168.0,0.00035864,2]
[385384659,1757808640028,-686.77284951,0.00035994,2]
[385384674,1757808644616,-183.40534592,0.0002595,2]
[385384675,1757808644627,-180.03999769,0.00035994,2]
[385384676,1757808644639,-257.04456605,0.00035994,2]
[385384677,1757808644649,-477.35327641,0.00036019,7]
[385384679,1757808645143,-22.64672359,0.00036019,7]
[385384680,1757808645153,-500.0,0.00036019,7]
[385384681,1757808645163,-151.0,0.00036019,30]
[385384683,1757808645173,-151.0,0.00036019,30]
[385384685,1757808645182,-151.0,0.00036019,30]
[385384686,1757808645192,-151.0,0.00036019,30]
[385384688,1757808645201,-151.0,0.00036019,30]
[385384689,1757808645211,-151.0,0.00036019,30]
[385384690,1757808645220,-151.0,0.00036019,30]
[385384691,1757808645230,-151.0,0.00036019,30]
[385384692,1757808645240,-103.92332665,0.00036019,30]
[385384696,1757808645736,-47.07667335,0.00036019,30]
[385384697,1757808645747,-151.0,0.00036019,30]
[385384698,1757808645758,-151.0,0.00036019,30]
[385384699,1757808645768,-151.0,0.00036019,30]
[385384700,1757808645778,-151.0,0.00036019,30]
[385384701,1757808645788,-247.623961,0.00036019,30]
[385384702,1757808645799,-400.0,0.00036094,2]
[385384703,1757808645810,-223.0,0.00036242,2]
[385384704,1757808645821,-223.0,0.00036242,2]
[385384705,1757808645831,-223.0,0.00036242,2]
[385384706,1757808645842,-223.0,0.00036242,2]
[385384707,1757808645853,-223.0,0.00036242,2]
[385384708,1757808645864,-223.0,0.00036242,2]
[385384709,1757808645874,-223.0,0.00036242,2]
[385384710,1757808645886,-223.0,0.00036242,2]
[385384711,1757808645897,-223.0,0.00036242,2]
[385384712,1757808645908,-223.0,0.00036242,2]
[385384713,1757808645918,-223.0,0.00036242,2]
[385384714,1757808645929,-47.14551944,0.00036242,2]
[385384715,1757808645963,-175.85448056,0.00036242,2]
[385384716,1757808645974,-223.0,0.00036242,2]
[385384717,1757808645985,-223.0,0.00036242,2]
[385384718,1757808645994,-223.0,0.00036242,2]
[385384719,1757808646004,-223.0,0.00036242,2]
[385384720,1757808646015,-223.0,0.00036242,2]
[385384721,1757808646026,-223.0,0.00036242,2]
[385384722,1757808646036,-223.0,0.00036242,2]
[385384723,1757808646048,-223.0,0.00036242,2]
[385384724,1757808646058,-223.0,0.00036242,2]
[385384725,1757808646068,-223.0,0.00036242,2]
[385384726,1757808646079,-223.0,0.00036242,2]
[385384727,1757808646090,-223.0,0.00036242,2]
[385384728,1757808646103,-223.0,0.00036242,2]
[385384729,1757808646113,-223.0,0.00036242,2]
[385384730,1757808646123,-223.0,0.00036242,2]
[385384731,1757808646134,-223.0,0.00036242,2]
[385384732,1757808646144,-223.0,0.00036242,2]
[385384733,1757808646155,-223.0,0.00036242,2]
[385384734,1757808646167,-223.0,0.00036242,2]
[385384735,1757808646178,-223.0,0.00036242,2]
[385384736,1757808646189,-223.0,0.00036242,2]
[385384737,1757808646200,-223.0,0.00036242,2]
[385384738,1757808646210,-236.46200147,0.00036323,2]
[385384739,1757808646220,-500.0,0.00036323,2]
[385384740,1757808646230,-168.0,0.00036324,2]
[385384741,1757808646240,-2801.278,0.00036362,2]
[385384742,1757808646250,-897.0,0.00036362,2]
[385384744,1757808646261,-288.0479459,0.00036368,2]
[385384746,1757808646271,-168.0,0.00036403,2]
[385384749,1757808646283,-151.0,0.00036476,30]
[385384751,1757808646295,-151.0,0.00036476,15]
[385384753,1757808646306,-151.0,0.00036476,30]
[385384755,1757808646316,-151.0,0.00036476,30]
[385384757,1757808646327,-151.0,0.00036476,30]
[385384759,1757808646337,-151.0,0.00036476,30]
[385384762,1757808646347,-151.0,0.00036476,30]
[385384763,1757808646358,-207.32552,0.00036476,30]
[385384765,1757808646368,-207.32552,0.00036476,30]
[385384766,1757808646378,-207.32552,0.00036476,30]
[385384767,1757808646388,-207.32552,0.00036476,30]
[385384770,1757808646399,-165.0,0.0003657,2]
[385384772,1757808646409,-168.0,0.00036627,2]
[385384774,1757808646419,-150.0,0.00036744,120]
[385384776,1757808646429,-1784.37694378,0.00036848,2]
[385384777,1757808646438,-157.33190827,0.00036848,2]
[385384779,1757808646448,-199.0,0.00036848,60]
[385384780,1757808646458,-1784.37694372,0.00036877,2]
[385384781,1757808646468,-3244.71583336,0.000369,120]
[385384782,1757808646478,-1784.37694372,0.00036907,2]
[385384783,1757808646488,-168.0,0.00036909,2]
[385384784,1757808646498,-168.0,0.00036913,7]
[385384785,1757808646510,-1000.0,0.00036924,2]
[385384786,1757808646521,-199.0,0.00036935,60]
[385384787,1757808646531,-1333.80309786,0.00036936,2]
[385384788,1757808813691,159.48,0.00017931,2]
[385384789,1757809069790,-159.48,0.00022414,2]
[385384792,1757809618069,-340.52,0.00024,5]
[385384793,1757809648185,-151.0,0.00024,5]
[385384794,1757809658430,-486.43278025,0.00024,5]
[385384796,1757809684215,-209.65855516,0.00024,5]
[385384797,1757809696761,-160.91459012,0.00024,5]
[385384799,1757809720543,-157.29,0.00024,5]
[385384800,1757809741822,-183.91400488,0.00024,5]
[385384808,1757809832135,-3310.270659,0.00024,5]
[385384809,1757809832145,-10.64569802,0.000249,2]
[385384810,1757809832157,-342.70550364,0.000249,2]
[385384811,1757809832244,-3680.33010897,0.000249,2]
[385384812,1757809832255,-573.3403172,0.000264,3]
[385384813,1757809832265,-1200.0,0.00026896,2]
[385384814,1757809832275,-159.48,0.00026897,2]
[385384815,1757809832286,-194.03,0.00027397,2]
[385384816,1757809832296,-150.0,0.00029,2]
[385384817,1757809832306,-150.0,0.0003018,2]
[385384818,1757809832316,-495.828595,0.00031213,2]
[385384819,1757809832327,-150.0,0.0003137,2]
[385384820,1757809832336,-159.48,0.00031379,2]
[385384821,1757809832346,-393.0,0.00031565,3]
[385384822,1757809832355,-576.33,0.00032,2]
[385384823,1757809832364,-150.0,0.0003255,2]
[385384824,1757809832374,-194.03,0.00033165,2]
[385384825,1757809832384,-500.0,0.00033213,12]
[385384826,1757809832393,-500.0,0.00033213,12]
[385384827,1757809832402,-500.0,0.00033213,12]
[385384828,1757809832411,-500.0,0.00033213,12]
[385384829,1757809832420,-500.0,0.00033213,12]
[385384830,1757809832430,-500.0,0.00033213,12]
[385384831,1757809832440,-500.0,0.00033213,12]
[385384832,1757809832450,-500.0,0.00033213,12]
[385384833,1757809832461,-515.60081738,0.00033561,2]
[385384834,1757809832470,-150.0,0.0003373,2]
[385384836,1757809832480,-158.01637,0.00033986,5]
[385384837,1757809832490,-158.01637,0.00034053,3]
[385384839,1757809832500,-500.0,0.00034375,7]
[385384842,1757809832510,-500.0,0.00034375,7]
[385384843,1757809832520,-3376.64,0.0003489,2]
[385384845,1757809832533,-150.0,0.0003492,2]
[385384847,1757809832544,-850.0,0.00034927,2]
[385384849,1757809832554,-151.0,0.00034928,2]
[385384850,1757809832566,-151.0,0.00034928,2]
[385384851,1757809832576,-151.0,0.00034928,2]
[385384852,1757809832585,-151.0,0.00034928,2]
[385384853,1757809832595,-151.0,0.00034928,2]
[385384854,1757809832605,-151.0,0.00034928,2]
[385384855,1757809832615,-151.0,0.00034928,2]
[385384856,1757809832624,-242.32598667,0.00034928,2]
[385384857,1757809832634,-4658.83,0.00034949,2]
[385384858,1757809832643,-151.0,0.00034965,7]
[385384859,1757809832652,-3135.39,0.00034968,2]
[385384860,1757809832662,-666.0,0.00034976,3]
[385384861,1757809832672,-203.24,0.00034989,2]
[385384862,1757809832681,-158.01637,0.00035324,2]
[385384863,1757809832691,-150.0,0.00035353,120]
[385384864,1757809832701,-150.0,0.00035409,120]
[385384865,1757809832712,-250.0,0.00035457,2]
[385384866,1757809832722,-480.36,0.00035497,2]
[385384867,1757809832732,-935.04,0.00035522,120]
[385384868,1757809832741,-226.03,0.00035522,42]
[385384869,1757809832752,-1000.0,0.00035576,30]
[385384870,1757809832762,-203.40723045,0.00035616,2]
[385384871,1757809832772,-150.0,0.0003563,120]
[385384872,1757809832782,-150.0,0.0003573,7]
[385384873,1757809832792,-159.48,0.00035862,2]
[385384874,1757809832803,-4800.0,0.00036,15]
[385384875,1757809832812,-522.13898997,0.00036019,7]
[385384876,1757809832822,-500.0,0.00036019,7]
[385384877,1757809832832,-150.0,0.00036052,120]
[385384878,1757809832842,-2293.8249407,0.00036081,2]
[385384879,1757809832853,-253.9,0.00036082,2]
[385384880,1757809832862,-150.0,0.000361,2]
[385384881,1757809832872,-277.0,0.00036126,2]
[385384882,1757809832881,-151.0,0.00036242,14]
[385384883,1757809832891,-500.0,0.00036242,15]
[385384884,1757809832900,-208.63057194,0.00036242,15]
[385384885,1757809832909,-500.0,0.00036242,15]
[385384886,1757809832919,-216.0953082,0.00036242,15]
[385384887,1757809832928,-500.0,0.00036242,15]
[385384888,1757809832937,-500.0,0.00036242,15]
[385384889,1757809832948,-500.0,0.00036242,15]
[385384890,1757809832958,-500.0,0.00036242,15]
[385384891,1757809832968,-500.0,0.00036242,15]
[385384892,1757809832978,-500.0,0.00036242,15]
[385384893,1757809832988,-500.0,0.00036242,15]
[385384894,1757809832999,-500.0,0.00036242,15]
[385384895,1757809833009,-500.0,0.00036242,15]
[385384896,1757809833019,-223.0,0.00036242,2]
[385384897,1757809833030,-223.0,0.00036242,2]
[385384898,1757809833041,-223.0,0.00036242,2]
[385384899,1757809833052,-223.0,0.00036242,2]
[385384900,1757809833064,-223.0,0.00036242,2]
[385384901,1757809833075,-223.0,0.00036242,2]
[385384902,1757809833086,-223.0,0.00036242,2]
[385384903,1757809833098,-223.0,0.00036242,2]
[385384904,1757809833110,-223.0,0.00036242,2]
[385384905,1757809833121,-223.0,0.00036242,2]
[385384906,1757809833132,-223.0,0.00036242,2]
[385384907,1757809833142,-223.0,0.00036242,2]
[385384908,1757809833153,-223.0,0.00036242,2]
[385384909,1757809833163,-223.0,0.00036242,2]
[385384910,1757809833173,-223.0,0.00036242,2]
[385384911,1757809833183,-223.0,0.00036242,2]
[385384912,1757809833194,-223.0,0.00036242,2]
[385384913,1757809833204,-204.0,0.00036242,2]
[385384914,1757809833216,-204.0,0.00036242,2]
[385384915,1757809833229,-204.0,0.00036242,2]
[385384916,1757809833239,-204.0,0.00036242,2]
[385384917,1757809833249,-2882.65,0.00036244,2]
[385384918,1757809833260,-153.0,0.00036245,2]
[385384919,1757809833270,-204.0,0.00036245,2]
[385384920,1757809833281,-204.0,0.00036245,2]
[385384921,1757809833293,-204.0,0.00036245,2]
[385384922,1757809833304,-204.0,0.00036245,2]
[385384923,1757809833314,-204.0,0.00036245,2]
[385384924,1757809833325,-204.0,0.00036245,2]
[385384925,1757809833335,-204.0,0.00036245,2]
[385384926,1757809833345,-204.0,0.00036245,2]
[385384927,1757809833355,-204.0,0.00036245,2]
[385384928,1757809833366,-204.0,0.00036245,2]
[385384929,1757809833377,-204.0,0.00036245,2]
[385384930,1757809833387,-204.0,0.00036245,2]
[385384931,1757809833397,-204.0,0.00036245,2]
[385384932,1757809833407,-204.0,0.00036245,2]
[385384933,1757809833417,-204.0,0.00036245,2]
[385384934,1757809833427,-204.0,0.00036245,2]
[385384935,1757809833438,-204.0,0.00036245,2]
[385384936,1757809833449,-204.0,0.00036245,2]
[385384937,1757809833461,-204.0,0.00036245,2]
[385384938,1757809833472,-204.0,0.00036245,2]
[385384939,1757809833482,-204.0,0.00036245,2]
[385384940,1757809833492,-153.0,0.00036245,2]
[385384941,1757809833502,-153.0,0.00036245,2]
[385384942,1757809833512,-153.0,0.00036245,2]
[385384943,1757809833522,-153.0,0.00036245,2]
[385384944,1757809833533,-153.0,0.00036245,2]
[385384945,1757809833543,-153.0,0.00036245,2]
[385384946,1757809833553,-153.0,0.00036245,2]
[385384947,1757809833563,-153.0,0.00036245,2]
[385384948,1757809833573,-153.0,0.00036245,2]
[385384949,1757809833583,-153.0,0.00036245,2]
[385384950,1757809833593,-153.0,0.00036245,2]
[385384951,1757809833603,-153.0,0.00036245,2]
[385384952,1757809833614,-153.0,0.00036245,2]
[385384953,1757809833625,-153.0,0.00036245,2]
[385384954,1757809833635,-153.0,0.00036245,2]
[385384955,1757809833645,-153.0,0.00036245,2]
[385384956,1757809833656,-153.0,0.00036245,2]
[385384957,1757809833666,-153.0,0.00036245,2]
[385384958,1757809833676,-204.0,0.00036245,2]
[385384959,1757809833687,-204.0,0.00036245,2]
[385384960,1757809833697,-204.0,0.00036245,2]
[385384961,1757809833711,-204.0,0.00036245,2]
[385384962,1757809833720,-204.0,0.00036245,2]
[385384963,1757809833730,-204.0,0.00036245,2]
[385384964,1757809833740,-204.0,0.00036245,2]
[385384965,1757809833750,-204.0,0.00036245,2]
[385384966,1757809833760,-204.0,0.00036245,2]
[385384967,1757809833771,-204.0,0.00036245,2]
[385384968,1757809833781,-204.0,0.00036245,2]
[385384969,1757809833791,-204.0,0.00036245,2]
[385384970,1757809833802,-204.0,0.00036245,2]
[385384971,1757809833812,-204.0,0.00036245,2]
[385384972,1757809833822,-204.0,0.00036245,2]
[385384973,1757809833831,-204.0,0.00036245,2]
[385384974,1757809833842,-204.0,0.00036245,2]
[385384975,1757809833851,-153.0,0.00036245,2]
[385384976,1757809833861,-153.0,0.00036245,2]
[385384977,1757809833871,-153.0,0.00036245,2]
[385384978,1757809833882,-153.0,0.00036245,2]
[385384979,1757809833892,-153.0,0.00036245,2]
[385384980,1757809833902,-153.0,0.00036245,2]
[385384981,1757809833912,-153.0,0.00036245,2]
[385384982,1757809833922,-153.0,0.00036245,2]
[385384983,1757809833931,-153.0,0.00036245,2]
[385384984,1757809833941,-153.0,0.00036245,2]
[385384985,1757809833950,-153.0,0.00036245,2]
[385384986,1757809833962,-204.0,0.00036245,2]
[385384987,1757809833971,-204.0,0.00036245,2]
[385384988,1757809833981,-204.0,0.00036245,2]
[385384989,1757809833991,-204.0,0.00036245,2]
[385384990,1757809834000,-204.0,0.00036245,2]
[385384991,1757809834010,-204.0,0.00036245,2]
[385384992,1757809834020,-204.0,0.00036245,2]
[385384993,1757809834030,-204.0,0.00036245,2]
[385384994,1757809834039,-204.0,0.00036245,2]
[385384995,1757809834049,-204.0,0.00036245,2]
[385384996,1757809834060,-204.0,0.00036245,2]
[385384997,1757809834070,-204.0,0.00036245,2]
[385384998,1757809834080,-204.0,0.00036245,2]
[385384999,1757809834089,-153.0,0.00036245,2]
[385385000,1757809834099,-153.0,0.00036245,2]
[385385001,1757809834109,-153.0,0.00036245,2]
[385385002,1757809834119,-153.0,0.00036245,2]
[385385003,1757809834128,-153.0,0.00036245,2]
[385385004,1757809834138,-153.0,0.00036245,2]
[385385005,1757809834148,-153.0,0.00036245,2]
[385385006,1757809834157,-153.0,0.00036245,2]
[385385007,1757809834167,-153.0,0.00036245,2]
[385385008,1757809834177,-153.0,0.00036245,2]
[385385009,1757809834186,-153.0,0.00036245,2]
[385385010,1757809834196,-153.0,0.00036245,2]
[385385011,1757809834206,-153.0,0.00036245,2]
[385385012,1757809834216,-204.0,0.00036245,2]
[385385013,1757809834226,-204.0,0.00036245,2]
[385385014,1757809834235,-204.0,0.00036245,2]
[385385015,1757809834245,-204.0,0.00036245,2]
[385385016,1757809834255,-204.0,0.00036245,2]
[385385017,1757809834264,-204.0,0.00036245,2]
[385385018,1757809834275,-204.0,0.00036245,2]
[385385019,1757809834284,-204.0,0.00036245,2]
[385385020,1757809834294,-204.0,0.00036245,2]
[385385021,1757809834303,-204.0,0.00036245,2]
[385385022,1757809834313,-204.0,0.00036245,2]
[385385023,1757809834322,-204.0,0.00036245,2]
[385385024,1757809834332,-204.0,0.00036245,2]
[385385025,1757809834700,-204.0,0.00036245,2]
[385385026,1757809834712,-153.0,0.00036245,2]
[385385027,1757809834721,-153.0,0.00036245,2]
[385385028,1757809834742,-153.0,0.00036245,2]
[385385029,1757809834756,-153.0,0.00036245,2]
[385385030,1757809834766,-153.0,0.00036245,2]
[385385031,1757809834776,-153.0,0.00036245,2]
[385385032,1757809834786,-153.0,0.00036245,2]
[385385033,1757809834795,-153.0,0.00036245,2]
[385385034,1757809834804,-153.0,0.00036245,2]
[385385035,1757809834814,-153.0,0.00036245,2]
[385385036,1757809834823,-153.0,0.00036245,2]
[385385037,1757809834832,-153.0,0.00036245,2]
[385385038,1757809834841,-204.0,0.00036245,2]
[385385039,1757809834851,-204.0,0.00036245,2]
[385385040,1757809834860,-204.0,0.00036245,2]
[385385041,1757809834869,-204.0,0.00036245,2]
[385385042,1757809834878,-204.0,0.00036245,2]
[385385043,1757809834888,-204.0,0.00036245,2]
[385385044,1757809834897,-204.0,0.00036245,2]
[385385045,1757809834907,-204.0,0.00036245,2]
[385385046,1757809834916,-204.0,0.00036245,2]
[385385047,1757809834925,-204.0,0.00036245,2]
[385385048,1757809834941,-204.0,0.00036245,2]
[385385049,1757809834955,-204.0,0.00036245,2]
[385385050,1757809834964,-204.0,0.00036245,2]
[385385051,1757809834973,-204.0,0.00036245,2]
[385385052,1757809834982,-204.0,0.00036245,2]
[385385053,1757809834991,-153.0,0.00036245,2]
[385385054,1757809835000,-153.0,0.00036245,2]
[385385055,1757809835010,-153.0,0.00036245,2]
[385385056,1757809835019,-153.0,0.00036245,2]
[385385057,1757809835028,-153.0,0.00036245,2]
[385385058,1757809835037,-153.0,0.00036245,2]
[385385059,1757809835046,-153.0,0.00036245,2]
[385385060,1757809835055,-153.0,0.00036245,2]
[385385061,1757809835064,-153.0,0.00036245,2]
[385385062,1757809835073,-153.0,0.00036245,2]
[385385063,1757809835082,-153.0,0.00036245,2]
[385385064,1757809835091,-153.0,0.00036245,2]
[385385065,1757809835100,-153.0,0.00036245,2]
[385385066,1757809835109,-204.0,0.00036245,2]
[385385067,1757809835117,-204.0,0.00036245,2]
[385385068,1757809835126,-204.0,0.00036245,2]
[385385069,1757809835135,-204.0,0.00036245,2]
[385385070,1757809835147,-204.0,0.00036245,2]
[385385071,1757809835156,-204.0,0.00036245,2]
[385385072,1757809835165,-204.0,0.00036245,2]
[385385073,1757809835174,-204.0,0.00036245,2]
[385385074,1757809835183,-204.0,0.00036245,2]
[385385075,1757809835192,-204.0,0.00036245,2]
[385385076,1757809835201,-204.0,0.00036245,2]
[385385077,1757809835210,-204.0,0.00036245,2]